[Event "*** SCC Grand Prix: Titled Tuesday Blitz"]
[Site "Chess.com"]
[Date "2020.07.07"]
[Round "4"]
[White "Ural_bogatyr"]
[Black "shnitez"]
[Result "1/2-1/2"]
[WhiteElo "2348"]
[BlackElo "2512"]
[TimeControl "180+1"]
[EndTime "10:40:56 PDT"]
[Termination "Game drawn - insufficient material"]

1. e4 {[%clk 0:03:00.9]} 1... c5 {[%clk 0:02:58.9]} 2. Nf3 {[%clk 0:03:00.5]}
2... e6 {[%clk 0:02:58.5]} 3. c3 {[%clk 0:03:00.3]} 3... Nf6 {[%clk 0:02:57.4]}
4. e5 {[%clk 0:03:00.5]} 4... Nd5 {[%clk 0:02:57.4]} 5. d4 {[%clk 0:03:01.4]}
5... cxd4 {[%clk 0:02:57.8]} 6. Qxd4 {[%clk 0:03:02.3]} 6... Nc6 {[%clk
0:02:55.8]} 7. Qe4 {[%clk 0:03:01.3]} 7... f5 {[%clk 0:02:54.6]} 8. Qe2 {[%clk
0:02:58.2]} 8... Rb8 {[%clk 0:02:26.2]} 9. g3 {[%clk 0:02:56.6]} 9... b5 {[%clk
0:02:25.9]} 10. Bg2 {[%clk 0:02:56.3]} 10... Bc5 {[%clk 0:02:11.2]} 11. O-O
{[%clk 0:02:52.3]} 11... O-O {[%clk 0:02:11]} 12. Rd1 {[%clk 0:02:49.7]} 12...
Qb6 {[%clk 0:01:55.6]} 13. a4 {[%clk 0:02:15.5]} 13... a6 {[%clk 0:01:52.3]} 14.
Nbd2 {[%clk 0:02:02.4]} 14... Bb7 {[%clk 0:01:37.9]} 15. Nb3 {[%clk 0:01:57.4]}
15... f4 {[%clk 0:01:08.7]} 16. axb5 {[%clk 0:01:39.3]} 16... axb5 {[%clk
0:01:08]} 17. Nxc5 {[%clk 0:01:31.5]} 17... Qxc5 {[%clk 0:01:08.9]} 18. Nd4
{[%clk 0:01:24]} 18... Nxd4 {[%clk 0:01:01.1]} 19. Rxd4 {[%clk 0:01:08.8]} 19...
Nxc3 {[%clk 0:00:34.4]} 20. bxc3 {[%clk 0:01:01.3]} 20... f3 {[%clk 0:00:26]}
21. Qe3 {[%clk 0:00:45.5]} 21... fxg2 {[%clk 0:00:25.1]} 22. Rxd7 {[%clk
0:00:44.3]} 22... Qxe3 {[%clk 0:00:20.1]} 23. Bxe3 {[%clk 0:00:45.2]} 23... Rf7
{[%clk 0:00:10.1]} 24. Rd6 {[%clk 0:00:42.6]} 24... Bd5 {[%clk 0:00:09.3]} 25.
Rd1 {[%clk 0:00:38.9]} 25... h6 {[%clk 0:00:09.1]} 26. R6xd5 {[%clk 0:00:36.5]}
26... exd5 {[%clk 0:00:09.1]} 27. Rxd5 {[%clk 0:00:37.2]} 27... Rc7 {[%clk
0:00:09.2]} 28. Bd4 {[%clk 0:00:35.5]} 28... b4 {[%clk 0:00:08.3]} 29. cxb4
{[%clk 0:00:34.3]} 29... Rxb4 {[%clk 0:00:09.2]} 30. Kxg2 {[%clk 0:00:33]} 30...
Rc1 {[%clk 0:00:09.1]} 31. Be3 {[%clk 0:00:31.2]} 31... Rcc4 {[%clk 0:00:06.8]}
32. Rd7 {[%clk 0:00:25.3]} 32... Rb8 {[%clk 0:00:05.1]} 33. Bd4 {[%clk
0:00:20.4]} 33... Re8 {[%clk 0:00:03.2]} 34. e6 {[%clk 0:00:20.1]} 34... Rxe6
{[%clk 0:00:03.4]} 35. Bxg7 {[%clk 0:00:17.9]} 35... Rg6 {[%clk 0:00:02.9]} 36.
Bd4 {[%clk 0:00:16.1]} 36... Rcc6 {[%clk 0:00:03.8]} 37. Rd8+ {[%clk 0:00:14.9]}
37... Kf7 {[%clk 0:00:03.4]} 38. h4 {[%clk 0:00:14.7]} 38... Rcd6 {[%clk
0:00:03.4]} 39. Rxd6 {[%clk 0:00:13.4]} 39... Rxd6 {[%clk 0:00:04.3]} 40. Be3
{[%clk 0:00:14.3]} 40... Kg6 {[%clk 0:00:03.9]} 41. g4 {[%clk 0:00:13.7]} 41...
Rd5 {[%clk 0:00:03.5]} 42. h5+ {[%clk 0:00:13]} 42... Kh7 {[%clk 0:00:03.4]} 43.
Kg3 {[%clk 0:00:13.1]} 43... Rb5 {[%clk 0:00:03.9]} 44. f4 {[%clk 0:00:12.3]}
44... Rb3 {[%clk 0:00:04.1]} 45. Kf3 {[%clk 0:00:12.4]} 45... Ra3 {[%clk
0:00:04.4]} 46. g5 {[%clk 0:00:12.2]} 46... hxg5 {[%clk 0:00:04.4]} 47. fxg5
{[%clk 0:00:13.1]} 47... Ra6 {[%clk 0:00:04.3]} 48. Bf4 {[%clk 0:00:12.3]} 48...
Rc6 {[%clk 0:00:04.3]} 49. Kg4 {[%clk 0:00:12.3]} 49... Ra6 {[%clk 0:00:04.8]}
50. Kf5 {[%clk 0:00:11.9]} 50... Ra5+ {[%clk 0:00:05.2]} 51. Be5 {[%clk
0:00:11.6]} 51... Ra2 {[%clk 0:00:03.2]} 52. g6+ {[%clk 0:00:11.1]} 52... Kg8
{[%clk 0:00:04.1]} 53. Bf4 {[%clk 0:00:10]} 53... Ra1 {[%clk 0:00:03.5]} 54. h6
{[%clk 0:00:09]} 54... Rh1 {[%clk 0:00:03.8]} 55. Kf6 {[%clk 0:00:07.6]} 55...
Rh3 {[%clk 0:00:03.9]} 56. h7+ {[%clk 0:00:07.1]} 56... Rxh7 {[%clk 0:00:03.6]}
57. gxh7+ {[%clk 0:00:08]} 57... Kxh7 {[%clk 0:00:04.5]} 1/2-1/2

[Event "*** SCC Grand Prix: Titled Tuesday Blitz"]
[Site "Chess.com"]
[Date "2020.07.07"]
[Round "4"]
[White "Oleksandr_Bortnyk"]
[Black "GMKrikor"]
[Result "1-0"]
[WhiteElo "2923"]
[BlackElo "2678"]
[TimeControl "180+1"]
[EndTime "10:40:58 PDT"]
[Termination "Oleksandr_Bortnyk won on time"]

1. e4 {[%clk 0:03:00.9]} 1... g6 {[%clk 0:02:59.4]} 2. d4 {[%clk 0:02:57.9]}
2... Bg7 {[%clk 0:02:59.4]} 3. Nf3 {[%clk 0:02:56.3]} 3... d6 {[%clk 0:02:59]}
4. Bd3 {[%clk 0:02:53.3]} 4... Nf6 {[%clk 0:02:57.6]} 5. h3 {[%clk 0:02:53.2]}
5... O-O {[%clk 0:02:57.1]} 6. O-O {[%clk 0:02:53.7]} 6... Nc6 {[%clk
0:02:54.2]} 7. d5 {[%clk 0:02:45.7]} 7... Nb4 {[%clk 0:02:52.8]} 8. Re1 {[%clk
0:02:36]} 8... Nxd3 {[%clk 0:02:51.9]} 9. cxd3 {[%clk 0:02:36.9]} 9... e6 {[%clk
0:02:29.1]} 10. dxe6 {[%clk 0:02:35.7]} 10... Bxe6 {[%clk 0:02:30]} 11. d4
{[%clk 0:02:35.6]} 11... d5 {[%clk 0:02:30.3]} 12. e5 {[%clk 0:02:34.9]} 12...
Ne4 {[%clk 0:02:21.6]} 13. Nc3 {[%clk 0:02:35.3]} 13... Nxc3 {[%clk 0:02:17.2]}
14. bxc3 {[%clk 0:02:36.2]} 14... Qd7 {[%clk 0:02:15]} 15. a4 {[%clk 0:02:31.3]}
15... a5 {[%clk 0:02:13.5]} 16. Bf4 {[%clk 0:02:19.7]} 16... h6 {[%clk
0:02:07.1]} 17. Re3 {[%clk 0:02:00.6]} 17... b5 {[%clk 0:01:55.7]} 18. Ne1
{[%clk 0:01:54.8]} 18... bxa4 {[%clk 0:01:36.4]} 19. Nd3 {[%clk 0:01:54.5]}
19... Rfb8 {[%clk 0:01:27.8]} 20. Nc5 {[%clk 0:01:54.2]} 20... Qb5 {[%clk
0:01:22.2]} 21. Rg3 {[%clk 0:01:23.2]} 21... Bf5 {[%clk 0:01:18.5]} 22. Kh2
{[%clk 0:01:15]} 22... a3 {[%clk 0:01:09.2]} 23. Rxa3 {[%clk 0:00:58]} 23... Qb2
{[%clk 0:01:07.6]} 24. Ra4 {[%clk 0:00:41.1]} 24... Qxf2 {[%clk 0:01:07.1]} 25.
Be3 {[%clk 0:00:40]} 25... Qc2 {[%clk 0:00:56]} 26. Qf3 {[%clk 0:00:40]} 26...
c6 {[%clk 0:00:41.5]} 27. Ra1 {[%clk 0:00:28.8]} 27... a4 {[%clk 0:00:37.6]} 28.
Bf4 {[%clk 0:00:22]} 28... Rb1 {[%clk 0:00:25.9]} 29. Rxb1 {[%clk 0:00:16.7]}
29... Qxb1 {[%clk 0:00:26.8]} 30. e6 {[%clk 0:00:17.6]} 30... fxe6 {[%clk
0:00:26.8]} 31. Qe3 {[%clk 0:00:18.1]} 31... Kh7 {[%clk 0:00:17]} 32. Be5 {[%clk
0:00:16.8]} 32... a3 {[%clk 0:00:07.6]} 33. Bxg7 {[%clk 0:00:16.6]} 33... Kxg7
{[%clk 0:00:08.5]} 34. Qe5+ {[%clk 0:00:16.5]} 34... Kh7 {[%clk 0:00:09.1]} 35.
Nd7 {[%clk 0:00:10.9]} 35... Qb7 {[%clk 0:00:05]} 36. Nf6+ {[%clk 0:00:09.5]}
36... Kh8 {[%clk 0:00:05.6]} 37. Nh5+ {[%clk 0:00:02.8]} 37... Kg8 {[%clk
0:00:05]} 38. Nf6+ {[%clk 0:00:03.7]} 38... Kf7 {[%clk 0:00:05.5]} 39. Nh5
{[%clk 0:00:03.8]} 39... Qe7 {[%clk 0:00:03.6]} 40. Qg7+ {[%clk 0:00:02.6]}
40... Ke8 {[%clk 0:00:04.1]} 41. Nf6+ {[%clk 0:00:03.5]} 41... Kd8 {[%clk
0:00:03.5]} 42. Qh8+ {[%clk 0:00:03.9]} 42... Kc7 {[%clk 0:00:03.9]} 43. Nxd5+
{[%clk 0:00:03.4]} 43... exd5 {[%clk 0:00:03.3]} 44. Qxa8 {[%clk 0:00:03.9]}
44... Qd6 {[%clk 0:00:03.6]} 45. Qa5+ {[%clk 0:00:03.6]} 45... Kc8 {[%clk
0:00:03.6]} 46. c4 {[%clk 0:00:03.6]} 46... dxc4 {[%clk 0:00:03.1]} 47. Qxa3
{[%clk 0:00:03.5]} 47... Qxa3 {[%clk 0:00:03.4]} 48. Rxa3 {[%clk 0:00:03.3]}
48... Bd3 {[%clk 0:00:04.3]} 49. Kg3 {[%clk 0:00:03.6]} 49... Kd7 {[%clk
0:00:04.8]} 50. Kf4 {[%clk 0:00:04.1]} 50... Kd6 {[%clk 0:00:05]} 51. Ke3 {[%clk
0:00:04.1]} 51... Bf1 {[%clk 0:00:04.8]} 52. Kf2 {[%clk 0:00:02.5]} 52... Bd3
{[%clk 0:00:04.8]} 53. g4 {[%clk 0:00:02.5]} 53... g5 {[%clk 0:00:02.4]} 54. Ke3
{[%clk 0:00:03]} 54... Bf1 {[%clk 0:00:02.7]} 55. Ke4 {[%clk 0:00:03]} 55... Be2
{[%clk 0:00:01.3]} 56. Ra8 {[%clk 0:00:02.5]} 1-0

[Event "*** SCC Grand Prix: Titled Tuesday Blitz"]
[Site "Chess.com"]
[Date "2020.07.07"]
[Round "4"]
[White "PotapovaM"]
[Black "124chess"]
[Result "0-1"]
[WhiteElo "2507"]
[BlackElo "2696"]
[TimeControl "180+1"]
[EndTime "10:40:59 PDT"]
[Termination "124chess won by resignation"]

1. d4 {[%clk 0:03:00.9]} 1... Nf6 {[%clk 0:02:58.9]} 2. c4 {[%clk 0:03:00.9]}
2... e6 {[%clk 0:02:59.8]} 3. Nf3 {[%clk 0:03:00.4]} 3... d5 {[%clk 0:02:59.6]}
4. g3 {[%clk 0:02:59.6]} 4... a6 {[%clk 0:02:59.8]} 5. Bg2 {[%clk 0:02:54]} 5...
dxc4 {[%clk 0:03:00.4]} 6. O-O {[%clk 0:02:43.1]} 6... Nc6 {[%clk 0:03:00.6]} 7.
e3 {[%clk 0:02:43.1]} 7... Bd7 {[%clk 0:03:00]} 8. b3 {[%clk 0:02:16.6]} 8...
cxb3 {[%clk 0:02:59.3]} 9. Qxb3 {[%clk 0:02:17.5]} 9... Rb8 {[%clk 0:02:57]} 10.
Nc3 {[%clk 0:02:16]} 10... Be7 {[%clk 0:02:54.9]} 11. e4 {[%clk 0:01:53.6]}
11... Na5 {[%clk 0:02:39.8]} 12. Qc2 {[%clk 0:01:50.6]} 12... Bc6 {[%clk
0:02:39.6]} 13. Rd1 {[%clk 0:01:42.1]} 13... Nc4 {[%clk 0:02:28.2]} 14. Bf4
{[%clk 0:01:32.9]} 14... O-O {[%clk 0:02:26]} 15. Rac1 {[%clk 0:01:28.7]} 15...
Na3 {[%clk 0:02:04.6]} 16. Qb3 {[%clk 0:01:14.7]} 16... Nxe4 {[%clk 0:01:55]}
17. Nxe4 {[%clk 0:01:10.6]} 17... Bxe4 {[%clk 0:01:55.9]} 18. Rxc7 {[%clk
0:01:09.7]} 18... Nb5 {[%clk 0:01:32.5]} 19. Rcc1 {[%clk 0:01:00.2]} 19... Rc8
{[%clk 0:01:23.2]} 20. a4 {[%clk 0:00:55.2]} 20... Rxc1 {[%clk 0:01:20.6]} 21.
Rxc1 {[%clk 0:00:43.7]} 21... Bd5 {[%clk 0:01:17.3]} 22. Qd3 {[%clk 0:00:39.1]}
22... Nd6 {[%clk 0:01:14.3]} 23. h4 {[%clk 0:00:37.7]} 23... h6 {[%clk
0:01:09.7]} 24. Ne5 {[%clk 0:00:28.1]} 24... Bxg2 {[%clk 0:01:08.5]} 25. Kxg2
{[%clk 0:00:29]} 25... Nf5 {[%clk 0:01:09]} 26. Nf3 {[%clk 0:00:24]} 26... Qd5
{[%clk 0:01:07.9]} 27. Qc4 {[%clk 0:00:22.6]} 27... Qd8 {[%clk 0:00:48.3]} 28.
Qc7 {[%clk 0:00:18.7]} 28... b5 {[%clk 0:00:26.3]} 29. a5 {[%clk 0:00:12.5]}
29... Qd5 {[%clk 0:00:22.4]} 30. Qc6 {[%clk 0:00:09.7]} 30... Qxc6 {[%clk
0:00:14.6]} 31. Rxc6 {[%clk 0:00:10.6]} 31... Ra8 {[%clk 0:00:15.3]} 32. Rb6
{[%clk 0:00:10.1]} 32... Bd8 {[%clk 0:00:13.6]} 33. Rb7 {[%clk 0:00:09.9]} 33...
Bxa5 {[%clk 0:00:13.1]} 34. Be3 {[%clk 0:00:09.6]} 34... Nxe3+ {[%clk
0:00:12.3]} 35. fxe3 {[%clk 0:00:10.5]} 35... Bd8 {[%clk 0:00:10.2]} 36. Ne5
{[%clk 0:00:10.9]} 36... Bf6 {[%clk 0:00:10.3]} 37. Nxf7 {[%clk 0:00:10.1]}
37... a5 {[%clk 0:00:10.8]} 38. g4 {[%clk 0:00:07.7]} 38... a4 {[%clk
0:00:10.7]} 39. g5 {[%clk 0:00:07.3]} 39... hxg5 {[%clk 0:00:11.6]} 40. hxg5
{[%clk 0:00:08.2]} 40... a3 {[%clk 0:00:09.2]} 41. gxf6 {[%clk 0:00:07.3]} 41...
a2 {[%clk 0:00:09]} 42. fxg7 {[%clk 0:00:07.6]} 42... Kxg7 {[%clk 0:00:08.2]}
43. Ne5+ {[%clk 0:00:05.7]} 43... Kh6 {[%clk 0:00:07.6]} 44. Ng4+ {[%clk
0:00:03.3]} 44... Kh5 {[%clk 0:00:05.1]} 45. Rh7+ {[%clk 0:00:03.2]} 45... Kg6
{[%clk 0:00:04.5]} 46. Rh1 {[%clk 0:00:03.8]} 46... a1=Q {[%clk 0:00:04.4]} 47.
Rxa1 {[%clk 0:00:04.4]} 47... Rxa1 {[%clk 0:00:05.1]} 48. Ne5+ {[%clk
0:00:05.2]} 48... Kf5 {[%clk 0:00:05.5]} 49. Nd3 {[%clk 0:00:06.1]} 49... Ke4
{[%clk 0:00:05.2]} 50. Nc5+ {[%clk 0:00:06.5]} 50... Kxe3 {[%clk 0:00:05.4]} 51.
Nxe6 {[%clk 0:00:07.2]} 51... b4 {[%clk 0:00:05.8]} 52. d5 {[%clk 0:00:07.2]}
52... b3 {[%clk 0:00:06.2]} 53. d6 {[%clk 0:00:07.6]} 53... b2 {[%clk
0:00:06.5]} 54. d7 {[%clk 0:00:07.6]} 54... Rd1 {[%clk 0:00:07.1]} 0-1

[Event "*** SCC Grand Prix: Titled Tuesday Blitz"]
[Site "Chess.com"]
[Date "2020.07.07"]
[Round "4"]
[White "szachuspl"]
[Black "csati17"]
[Result "1-0"]
[WhiteElo "2498"]
[BlackElo "2646"]
[TimeControl "180+1"]
[EndTime "10:40:59 PDT"]
[Termination "szachuspl won by resignation"]

1. d4 {[%clk 0:03:00.9]} 1... Nf6 {[%clk 0:02:59.9]} 2. c4 {[%clk 0:03:00.7]}
2... e6 {[%clk 0:02:59.5]} 3. Nf3 {[%clk 0:03:00.4]} 3... Bb4+ {[%clk
0:02:59.5]} 4. Nbd2 {[%clk 0:03:00.2]} 4... a5 {[%clk 0:02:59]} 5. g3 {[%clk
0:02:59.6]} 5... O-O {[%clk 0:02:58.2]} 6. Bg2 {[%clk 0:02:59.6]} 6... d5 {[%clk
0:02:47.6]} 7. O-O {[%clk 0:02:52.5]} 7... a4 {[%clk 0:02:40.6]} 8. Qc2 {[%clk
0:02:47.4]} 8... c6 {[%clk 0:02:39.2]} 9. Rd1 {[%clk 0:02:44.5]} 9... a3 {[%clk
0:02:34.9]} 10. b3 {[%clk 0:02:38.6]} 10... Nbd7 {[%clk 0:02:22]} 11. e4 {[%clk
0:02:35.4]} 11... dxe4 {[%clk 0:02:16.3]} 12. Nxe4 {[%clk 0:02:34.4]} 12... Nxe4
{[%clk 0:02:17.2]} 13. Qxe4 {[%clk 0:02:33.2]} 13... Nf6 {[%clk 0:02:18.1]} 14.
Qc2 {[%clk 0:02:32.4]} 14... Qa5 {[%clk 0:01:55.3]} 15. Bd2 {[%clk 0:02:27.5]}
15... Rd8 {[%clk 0:01:54.3]} 16. Bxb4 {[%clk 0:02:23.5]} 16... Qxb4 {[%clk
0:01:55.2]} 17. Ne5 {[%clk 0:02:14.4]} 17... Nd7 {[%clk 0:01:43]} 18. Nd3 {[%clk
0:02:11.4]} 18... Qe7 {[%clk 0:01:41.5]} 19. Rd2 {[%clk 0:02:04.3]} 19... Nf6
{[%clk 0:01:32.8]} 20. Ne5 {[%clk 0:01:58.3]} 20... Bd7 {[%clk 0:01:25.4]} 21.
c5 {[%clk 0:01:52.5]} 21... Be8 {[%clk 0:01:10.5]} 22. Nc4 {[%clk 0:01:50.2]}
22... Nd5 {[%clk 0:00:56.7]} 23. Bxd5 {[%clk 0:01:34.5]} 23... cxd5 {[%clk
0:00:57.6]} 24. Nb6 {[%clk 0:01:26.6]} 24... Ra6 {[%clk 0:00:53.6]} 25. Re1
{[%clk 0:01:25.4]} 25... Bb5 {[%clk 0:00:51.9]} 26. Qc3 {[%clk 0:01:18.7]} 26...
Qe8 {[%clk 0:00:46.2]} 27. Qe3 {[%clk 0:01:17]} 27... Qc6 {[%clk 0:00:45.4]} 28.
h4 {[%clk 0:01:09.6]} 28... h6 {[%clk 0:00:44.7]} 29. Kg2 {[%clk 0:00:56.2]}
29... Qc7 {[%clk 0:00:41.5]} 30. Qe5 {[%clk 0:00:54.8]} 30... Qc6 {[%clk
0:00:38]} 31. Re3 {[%clk 0:00:54.3]} 31... Re8 {[%clk 0:00:34.9]} 32. g4 {[%clk
0:00:52.5]} 32... f6 {[%clk 0:00:30.9]} 33. Qg3 {[%clk 0:00:49.5]} 33... e5
{[%clk 0:00:28.5]} 34. Kh2 {[%clk 0:00:49.6]} 34... e4 {[%clk 0:00:22.4]} 35.
Rd1 {[%clk 0:00:43.7]} 35... Rxb6 {[%clk 0:00:22.6]} 36. cxb6 {[%clk 0:00:42.1]}
36... Qxb6 {[%clk 0:00:23.5]} 37. g5 {[%clk 0:00:42.1]} 37... f5 {[%clk
0:00:22]} 38. Rc1 {[%clk 0:00:40.5]} 38... hxg5 {[%clk 0:00:19.4]} 39. Qxg5
{[%clk 0:00:37]} 39... Qxd4 {[%clk 0:00:19.6]} 40. Rc7 {[%clk 0:00:36.2]} 40...
Qe5+ {[%clk 0:00:19.2]} 41. Qg3 {[%clk 0:00:24.1]} 41... f4 {[%clk 0:00:19]} 42.
Rxg7+ {[%clk 0:00:24.6]} 42... Qxg7 {[%clk 0:00:18.9]} 43. Qxf4 {[%clk
0:00:25.3]} 43... Qe5 {[%clk 0:00:19]} 44. Rg3+ {[%clk 0:00:25]} 44... Qg7
{[%clk 0:00:05.2]} 45. Rxg7+ {[%clk 0:00:22.5]} 45... Kxg7 {[%clk 0:00:06.1]}
46. Qc7+ {[%clk 0:00:19]} 46... Kf6 {[%clk 0:00:05.8]} 47. Qxb7 {[%clk
0:00:18.1]} 47... Ke5 {[%clk 0:00:04]} 48. Qxb5 {[%clk 0:00:17.6]} 48... Rf8
{[%clk 0:00:04.9]} 49. Qc5 {[%clk 0:00:16.3]} 49... Rf3 {[%clk 0:00:03.8]} 50.
Kg2 {[%clk 0:00:16.3]} 50... Kf4 {[%clk 0:00:04.1]} 51. Qxa3 {[%clk 0:00:15.3]}
51... Rd3 {[%clk 0:00:04.7]} 52. Qd6+ {[%clk 0:00:15.4]} 52... Kf5 {[%clk
0:00:04.6]} 53. h5 {[%clk 0:00:15.4]} 53... Rd2 {[%clk 0:00:05]} 54. Qg6+ {[%clk
0:00:15.8]} 54... Ke5 {[%clk 0:00:05.2]} 55. Qg5+ {[%clk 0:00:16.3]} 55... Kd4
{[%clk 0:00:06.1]} 56. Qxd2+ {[%clk 0:00:16.8]} 56... Kc5 {[%clk 0:00:07]} 57.
h6 {[%clk 0:00:17.3]} 57... d4 {[%clk 0:00:07.3]} 58. h7 {[%clk 0:00:17.6]}
58... e3 {[%clk 0:00:08.2]} 59. fxe3 {[%clk 0:00:17.7]} 59... d3 {[%clk
0:00:09.1]} 60. Qxd3 {[%clk 0:00:17.9]} 60... Kb4 {[%clk 0:00:09.6]} 61. Qd4+
{[%clk 0:00:18]} 61... Ka3 {[%clk 0:00:10.5]} 62. b4 {[%clk 0:00:18.6]} 62...
Ka4 {[%clk 0:00:10.5]} 63. b5+ {[%clk 0:00:19.5]} 63... Ka3 {[%clk 0:00:11.4]}
64. b6 {[%clk 0:00:20]} 64... Kxa2 {[%clk 0:00:10.4]} 65. b7 {[%clk 0:00:20.5]}
65... Kb1 {[%clk 0:00:11.3]} 66. Qc4 {[%clk 0:00:20.4]} 66... Ka1 {[%clk
0:00:11]} 67. Qb5 {[%clk 0:00:20.2]} 1-0

[Event "*** SCC Grand Prix: Titled Tuesday Blitz"]
[Site "Chess.com"]
[Date "2020.07.07"]
[Round "4"]
[White "LikeWater"]
[Black "TigrVShlyape"]
[Result "0-1"]
[WhiteElo "2657"]
[BlackElo "2897"]
[TimeControl "180+1"]
[EndTime "10:41:02 PDT"]
[Termination "TigrVShlyape won on time"]

1. e4 {[%clk 0:03:00.9]} 1... e5 {[%clk 0:02:54.5]} 2. Nf3 {[%clk 0:02:56.5]}
2... Nc6 {[%clk 0:02:52.4]} 3. Bc4 {[%clk 0:02:55.1]} 3... Nf6 {[%clk 0:02:49]}
4. d3 {[%clk 0:02:52.5]} 4... h6 {[%clk 0:02:46.8]} 5. c3 {[%clk 0:02:50.3]}
5... d6 {[%clk 0:02:42.5]} 6. O-O {[%clk 0:02:43.9]} 6... g6 {[%clk 0:02:42.1]}
7. Re1 {[%clk 0:02:31.1]} 7... Bg7 {[%clk 0:02:41.1]} 8. Nbd2 {[%clk 0:02:21.8]}
8... O-O {[%clk 0:02:32.8]} 9. Nf1 {[%clk 0:02:17.8]} 9... Bd7 {[%clk
0:02:31.8]} 10. a4 {[%clk 0:02:14]} 10... Qe8 {[%clk 0:02:24.6]} 11. Ng3 {[%clk
0:02:05]} 11... Na5 {[%clk 0:02:14.7]} 12. Ba2 {[%clk 0:01:58.4]} 12... Kh8
{[%clk 0:02:12.5]} 13. b4 {[%clk 0:01:48.6]} 13... Bxa4 {[%clk 0:01:23.9]} 14.
Qe2 {[%clk 0:01:48.5]} 14... Nb3 {[%clk 0:01:21.8]} 15. Bxb3 {[%clk 0:01:47.6]}
15... Bxb3 {[%clk 0:01:22.1]} 16. c4 {[%clk 0:01:46.2]} 16... b5 {[%clk
0:01:18.6]} 17. Ra5 {[%clk 0:01:22.1]} 17... a6 {[%clk 0:00:55.1]} 18. Nd2
{[%clk 0:01:07.7]} 18... Ba4 {[%clk 0:00:55.1]} 19. Nb1 {[%clk 0:01:08.4]} 19...
bxc4 {[%clk 0:00:43.3]} 20. dxc4 {[%clk 0:01:07.1]} 20... Bc6 {[%clk 0:00:40.9]}
21. Nc3 {[%clk 0:01:06.1]} 21... Bb7 {[%clk 0:00:36.3]} 22. Be3 {[%clk
0:01:01.7]} 22... Qe6 {[%clk 0:00:32.4]} 23. Nd5 {[%clk 0:00:59.7]} 23... Rac8
{[%clk 0:00:31.4]} 24. h3 {[%clk 0:00:54.8]} 24... Nd7 {[%clk 0:00:30.2]} 25.
Qd2 {[%clk 0:00:52]} 25... Kh7 {[%clk 0:00:28.5]} 26. f4 {[%clk 0:00:51.1]}
26... exf4 {[%clk 0:00:27.2]} 27. Nxf4 {[%clk 0:00:51.2]} 27... Qxc4 {[%clk
0:00:20.8]} 28. Rc1 {[%clk 0:00:43.1]} 28... Qb3 {[%clk 0:00:20.8]} 29. Nd5
{[%clk 0:00:39.3]} 29... Qb2 {[%clk 0:00:15]} 30. Rc2 {[%clk 0:00:35]} 30... Qe5
{[%clk 0:00:14.9]} 31. Bf4 {[%clk 0:00:35.2]} 31... Qe6 {[%clk 0:00:13]} 32.
Nxc7 {[%clk 0:00:32.8]} 32... Qf6 {[%clk 0:00:11.6]} 33. Qxd6 {[%clk 0:00:30]}
33... Rfd8 {[%clk 0:00:09.3]} 34. Raa2 {[%clk 0:00:15]} 34... Ne5 {[%clk
0:00:08.5]} 35. Qxf6 {[%clk 0:00:14.9]} 35... Bxf6 {[%clk 0:00:08.8]} 36. Nd5
{[%clk 0:00:10.7]} 36... Bxd5 {[%clk 0:00:08.2]} 37. exd5 {[%clk 0:00:11.3]}
37... Rxc2 {[%clk 0:00:07.5]} 38. Rxc2 {[%clk 0:00:12.2]} 38... Rxd5 {[%clk
0:00:07.4]} 39. Ne4 {[%clk 0:00:12.8]} 39... Bg7 {[%clk 0:00:07.6]} 40. Rc7
{[%clk 0:00:11]} 40... g5 {[%clk 0:00:06]} 41. Bxe5 {[%clk 0:00:09.7]} 41...
Bxe5 {[%clk 0:00:06.4]} 42. Rxf7+ {[%clk 0:00:08.5]} 42... Kg6 {[%clk 0:00:07]}
43. Rb7 {[%clk 0:00:08.4]} 43... Kf5 {[%clk 0:00:07.1]} 44. Nf2 {[%clk
0:00:06.6]} 44... Bd4 {[%clk 0:00:06.6]} 45. Kf1 {[%clk 0:00:04.6]} 45... Rb5
{[%clk 0:00:06.3]} 46. Rxb5+ {[%clk 0:00:03.1]} 46... axb5 {[%clk 0:00:06.5]}
47. Nd3 {[%clk 0:00:02.2]} 47... Ke4 {[%clk 0:00:06.2]} 48. Ke2 {[%clk
0:00:03.1]} 48... Kd5 {[%clk 0:00:06.2]} 49. Kf3 {[%clk 0:00:02.8]} 49... h5
{[%clk 0:00:06.7]} 50. g3 {[%clk 0:00:02.3]} 50... Kc4 {[%clk 0:00:06.2]} 51.
Ke4 {[%clk 0:00:03.2]} 51... Bc3 {[%clk 0:00:06.6]} 52. g4 {[%clk 0:00:03.5]}
52... hxg4 {[%clk 0:00:06]} 53. hxg4 {[%clk 0:00:04.4]} 53... Bxb4 {[%clk
0:00:06.6]} 54. Ne5+ {[%clk 0:00:04.8]} 54... Kc3 {[%clk 0:00:06.7]} 55. Nf7
{[%clk 0:00:01.5]} 55... Bc5 {[%clk 0:00:07.1]} 56. Kd5 {[%clk 0:00:01.8]} 56...
b4 {[%clk 0:00:07.2]} 57. Kxc5 {[%clk 0:00:01.5]} 57... b3 {[%clk 0:00:07.8]}
58. Nxg5 {[%clk 0:00:01.7]} 58... b2 {[%clk 0:00:08]} 59. Ne4+ {[%clk
0:00:02.6]} 59... Kc2 {[%clk 0:00:08.3]} 0-1